[Event "Titled Tuesday Blitz December 20 Late 2022"]
[White "Alex_Sahakyan2006"]
[Black "Shapiro, Daniel"]
[BlackFideId "2001780"]
[WhiteElo "2621"]
[BlackElo "2338"]
[Result "1-0"]
[Round "01"]
[TimeControl "180+1"]
[Date "2022.12.21"]
[WhiteClock "0:00:36"]
[BlackClock "0:00:12"]

1. c4 {[%clk 0:03:00]}  e5 {[%clk 0:02:58]} 2. Nc3 {[%clk 0:03:01]}  Nf6 {[%clk 0:02:56]} 3. Nf3 {[%clk 0:03:01]}  Nc6 {[%clk 0:02:54]} 4. e4 {[%clk 0:03:01]}  Bc5 {[%clk 0:02:46]} 5. Nxe5 {[%clk 0:03:00]}  Nxe5 {[%clk 0:02:46]} 6. d4 {[%clk 0:02:59]}  Bb4 {[%clk 0:02:46]} 7. dxe5 {[%clk 0:02:59]}  Nxe4 {[%clk 0:02:46]} 8. Qd4 {[%clk 0:02:58]}  f5 {[%clk 0:02:37]} 9. exf6 {[%clk 0:02:54]}  O-O {[%clk 0:02:29]} 10. fxg7 {[%clk 0:02:36]}  Rf7 {[%clk 0:02:21]} 11. Be3 {[%clk 0:02:31]}  Qe7 {[%clk 0:02:02]} 12. c5 {[%clk 0:02:06]}  Bxc3+ {[%clk 0:01:41]} 13. bxc3 {[%clk 0:02:05]}  Nxf2 {[%clk 0:01:41]} 14. Bc4 {[%clk 0:02:01]}  Nxh1 {[%clk 0:01:33]} 15. Kd2 {[%clk 0:01:52]}  d5 {[%clk 0:01:29]} 16. cxd6 {[%clk 0:01:51]}  cxd6 {[%clk 0:01:26]} 17. Qd5 {[%clk 0:01:38]}  Bd7 {[%clk 0:00:50]} 18. Rf1 {[%clk 0:01:24]}  Be8 {[%clk 0:00:45]} 19. Rxh1 {[%clk 0:01:07]}  Kxg7 {[%clk 0:00:27]} 20. Bd4+ {[%clk 0:01:07]}  Kf8 {[%clk 0:00:23]} 21. Re1 {[%clk 0:01:06]}  Qc7 {[%clk 0:00:14]} 22. Bb3 {[%clk 0:00:46]}  Bc6 {[%clk 0:00:12]} 23. Qh5 {[%clk 0:00:42]}  d5 {[%clk 0:00:12]} 24. Qh6+ {[%clk 0:00:36]}  Kg8 {[%clk 0:00:12]} 25. Qg5+ {[%clk 0:00:36]}  Kf8 {[%clk 0:00:12]} 26. Bc5+ {[%clk 0:00:36]} 1-0


[Site "https://www.chess.com"]

[Event "Titled Tuesday Blitz December 20 Late 2022"]
[White "Andreikin, Dmitry"]
[Black "Bellissimo, Joseph F."]
[WhiteFideId "4158814"]
[BlackFideId "2609843"]
[WhiteElo "2735"]
[BlackElo "2103"]
[Result "1-0"]
[Round "01"]
[TimeControl "180+1"]
[Date "2022.12.20"]
[WhiteClock "0:01:05"]
[BlackClock "0:00:02"]

1. d4 {[%clk 0:02:59]}  Nf6 {[%clk 0:02:59]} 2. c4 {[%clk 0:02:57]}  e6 {[%clk 0:03:00]} 3. Nf3 {[%clk 0:02:56]}  d5 {[%clk 0:02:58]} 4. Nc3 {[%clk 0:02:54]}  Be7 {[%clk 0:02:51]} 5. Bf4 {[%clk 0:02:50]}  a6 {[%clk 0:02:51]} 6. e3 {[%clk 0:02:48]}  dxc4 {[%clk 0:02:51]} 7. a4 {[%clk 0:02:47]}  b6 {[%clk 0:02:48]} 8. Bxc4 {[%clk 0:02:46]}  Bb7 {[%clk 0:02:49]} 9. Qe2 {[%clk 0:02:45]}  Bb4 {[%clk 0:02:35]} 10. O-O {[%clk 0:02:39]}  Bxc3 {[%clk 0:02:35]} 11. bxc3 {[%clk 0:02:39]}  Ne4 {[%clk 0:02:36]} 12. Rfc1 {[%clk 0:02:27]}  Nd7 {[%clk 0:02:35]} 13. Ne5 {[%clk 0:02:17]}  O-O {[%clk 0:02:16]} 14. f3 {[%clk 0:02:15]}  Nd6 {[%clk 0:02:13]} 15. Bd3 {[%clk 0:02:15]}  Nxe5 {[%clk 0:01:56]} 16. Bxe5 {[%clk 0:02:15]}  f6 {[%clk 0:01:56]} 17. Bg3 {[%clk 0:02:11]}  Re8 {[%clk 0:01:56]} 18. e4 {[%clk 0:01:52]}  e5 {[%clk 0:01:54]} 19. d5 {[%clk 0:01:49]}  c5 {[%clk 0:01:32]} 20. dxc6 {[%clk 0:01:45]}  Bxc6 {[%clk 0:01:29]} 21. Bf2 {[%clk 0:01:46]}  b5 {[%clk 0:01:23]} 22. axb5 {[%clk 0:01:38]}  axb5 {[%clk 0:01:24]} 23. Bc5 {[%clk 0:01:38]}  Rxa1 {[%clk 0:00:31]} 24. Rxa1 {[%clk 0:01:39]}  Nb7 {[%clk 0:00:31]} 25. Bb4 {[%clk 0:01:33]}  Qb6+ {[%clk 0:00:29]} 26. Qf2 {[%clk 0:01:33]}  Qc7 {[%clk 0:00:28]} 27. Ra6 {[%clk 0:01:23]}  Rd8 {[%clk 0:00:27]} 28. Bc2 {[%clk 0:01:23]}  Qd7 {[%clk 0:00:24]} 29. h3 {[%clk 0:01:16]}  h6 {[%clk 0:00:24]} 30. Kh2 {[%clk 0:01:16]}  Nd6 {[%clk 0:00:20]} 31. Qc5 {[%clk 0:01:09]}  Nxe4 {[%clk 0:00:02]} 32. Qxc6 {[%clk 0:01:05]} 1-0


[Site "https://www.chess.com"]

[Event "Titled Tuesday Blitz December 20 Late 2022"]
[White "Andrews, Todd"]
[Black "Megalios, Konstantinos"]
[WhiteFideId "2012456"]
[BlackFideId "4238044"]
[WhiteElo "2319"]
[BlackElo "2277"]
[Result "1/2-1/2"]
[Round "01"]
[TimeControl "180+1"]
[Date "2022.12.21"]
[WhiteClock "0:00:52"]
[BlackClock "0:00:17"]

1. e4 {[%clk 0:03:00]}  c5 {[%clk 0:02:53]} 2. Nf3 {[%clk 0:03:00]}  d6 {[%clk 0:02:52]} 3. d3 {[%clk 0:03:00]}  g6 {[%clk 0:02:51]} 4. g3 {[%clk 0:03:01]}  Bg7 {[%clk 0:02:51]} 5. Bg2 {[%clk 0:03:01]}  Nc6 {[%clk 0:02:52]} 6. O-O {[%clk 0:03:02]}  e5 {[%clk 0:02:52]} 7. Nc3 {[%clk 0:03:01]}  Nge7 {[%clk 0:02:52]} 8. Nd2 {[%clk 0:03:00]}  O-O {[%clk 0:02:48]} 9. Nc4 {[%clk 0:02:57]}  Be6 {[%clk 0:02:39]} 10. Nd5 {[%clk 0:02:57]}  b5 {[%clk 0:02:24]} 11. Nce3 {[%clk 0:02:53]}  b4 {[%clk 0:02:24]} 12. a3 {[%clk 0:02:43]}  a5 {[%clk 0:02:18]} 13. Nc4 {[%clk 0:02:36]}  Bxd5 {[%clk 0:02:01]} 14. exd5 {[%clk 0:02:35]}  Nd4 {[%clk 0:02:02]} 15. axb4 {[%clk 0:02:25]}  cxb4 {[%clk 0:01:57]} 16. c3 {[%clk 0:02:20]}  Nb5 {[%clk 0:01:50]} 17. Bd2 {[%clk 0:02:14]}  bxc3 {[%clk 0:01:42]} 18. bxc3 {[%clk 0:02:14]}  e4 {[%clk 0:01:33]} 19. dxe4 {[%clk 0:02:07]}  Nxc3 {[%clk 0:01:31]} 20. Qe1 {[%clk 0:01:50]}  Rc8 {[%clk 0:01:03]} 21. Bxc3 {[%clk 0:01:42]}  Rxc4 {[%clk 0:01:03]} 22. Bxg7 {[%clk 0:01:41]}  Kxg7 {[%clk 0:01:03]} 23. Qxa5 {[%clk 0:01:40]}  Qxa5 {[%clk 0:00:55]} 24. Rxa5 {[%clk 0:01:40]}  Rb8 {[%clk 0:00:56]} 25. Ra6 {[%clk 0:01:36]}  Nc8 {[%clk 0:00:46]} 26. Rd1 {[%clk 0:01:29]}  Rb2 {[%clk 0:00:38]} 27. Rc6 {[%clk 0:01:28]}  Rbc2 {[%clk 0:00:36]} 28. Rxc4 {[%clk 0:01:26]}  Rxc4 {[%clk 0:00:36]} 29. e5 {[%clk 0:01:26]}  Kf8 {[%clk 0:00:21]} 30. Bh3 {[%clk 0:01:21]}  dxe5 {[%clk 0:00:20]} 31. d6 {[%clk 0:01:19]}  Nxd6 {[%clk 0:00:13]} 32. Rxd6 {[%clk 0:01:18]}  Ke7 {[%clk 0:00:14]} 33. Rd7+ {[%clk 0:01:17]}  Kf6 {[%clk 0:00:14]} 34. Kg2 {[%clk 0:01:16]}  g5 {[%clk 0:00:12]} 35. Ra7 {[%clk 0:01:15]}  g4 {[%clk 0:00:12]} 36. Bxg4 {[%clk 0:01:11]}  Rxg4 {[%clk 0:00:13]} 37. Ra6+ {[%clk 0:01:11]}  Kg7 {[%clk 0:00:13]} 38. Kf3 {[%clk 0:01:09]}  Rd4 {[%clk 0:00:13]} 39. h4 {[%clk 0:01:10]}  h5 {[%clk 0:00:13]} 40. Ke3 {[%clk 0:01:07]}  f6 {[%clk 0:00:13]} 41. f4 {[%clk 0:01:04]}  Rb4 {[%clk 0:00:13]} 42. fxe5 {[%clk 0:01:04]}  fxe5 {[%clk 0:00:14]} 43. Re6 {[%clk 0:01:04]}  Rg4 {[%clk 0:00:13]} 44. Kf3 {[%clk 0:01:03]}  Kf7 {[%clk 0:00:11]} 45. Rxe5 {[%clk 0:01:02]}  Kg6 {[%clk 0:00:12]} 46. Re6+ {[%clk 0:00:59]}  Kg7 {[%clk 0:00:11]} 47. Rb6 {[%clk 0:00:57]}  Rc4 {[%clk 0:00:11]} 48. Rb3 {[%clk 0:00:55]}  Rd4 {[%clk 0:00:11]} 49. Re3 {[%clk 0:00:56]}  Kg6 {[%clk 0:00:11]} 50. Re4 {[%clk 0:00:56]}  Rd3+ {[%clk 0:00:12]} 51. Kf4 {[%clk 0:00:56]}  Ra3 {[%clk 0:00:12]} 52. Re6+ {[%clk 0:00:56]}  Kh7 {[%clk 0:00:12]} 53. Re5 {[%clk 0:00:56]}  Kg6 {[%clk 0:00:12]} 54. Re6+ {[%clk 0:00:56]}  Kh7 {[%clk 0:00:12]} 55. Rf6 {[%clk 0:00:52]}  Kg7 {[%clk 0:00:12]} 56. Rf5 {[%clk 0:00:53]}  Kg6 {[%clk 0:00:12]} 57. Rg5+ {[%clk 0:00:53]}  Kh6 {[%clk 0:00:13]} 58. Rb5 {[%clk 0:00:53]}  Kg6 {[%clk 0:00:13]} 59. Rb6+ {[%clk 0:00:52]}  Kh7 {[%clk 0:00:13]} 60. Re6 {[%clk 0:00:51]}  Kg7 {[%clk 0:00:13]} 61. Kg5 {[%clk 0:00:51]}  Rxg3+ {[%clk 0:00:13]} 62. Kxh5 {[%clk 0:00:51]}  Kh7 {[%clk 0:00:13]} 63. Re7+ {[%clk 0:00:51]}  Kh8 {[%clk 0:00:13]} 64. Kh6 {[%clk 0:00:52]}  Rg1 {[%clk 0:00:13]} 65. Re8+ {[%clk 0:00:51]}  Rg8 {[%clk 0:00:13]} 66. Re7 {[%clk 0:00:52]}  Rg1 {[%clk 0:00:13]} 67. h5 {[%clk 0:00:52]}  Rg2 {[%clk 0:00:13]} 68. Rh7+ {[%clk 0:00:52]}  Kg8 {[%clk 0:00:13]} 69. Rd7 {[%clk 0:00:53]}  Kh8 {[%clk 0:00:13]} 70. Rd8+ {[%clk 0:00:53]}  Rg8 {[%clk 0:00:13]} 71. Rd6 {[%clk 0:00:53]}  Rg1 {[%clk 0:00:13]} 72. Rg6 {[%clk 0:00:54]}  Ra1 {[%clk 0:00:13]} 73. Re6 {[%clk 0:00:53]}  Ra8 {[%clk 0:00:13]} 74. Re7 {[%clk 0:00:52]}  Ra6+ {[%clk 0:00:13]} 75. Kg5 {[%clk 0:00:52]}  Rb6 {[%clk 0:00:14]} 76. h6 {[%clk 0:00:52]}  Rb1 {[%clk 0:00:14]} 77. Kg6 {[%clk 0:00:51]}  Rg1+ {[%clk 0:00:14]} 78. Kf6 {[%clk 0:00:51]}  Rf1+ {[%clk 0:00:14]} 79. Kg5 {[%clk 0:00:50]}  Rg1+ {[%clk 0:00:14]} 80. Kh5 {[%clk 0:00:51]}  Rh1+ {[%clk 0:00:15]} 81. Kg6 {[%clk 0:00:51]}  Rg1+ {[%clk 0:00:16]} 82. Kf7 {[%clk 0:00:51]}  Rf1+ {[%clk 0:00:16]} 83. Ke8 {[%clk 0:00:52]}  Rh1 {[%clk 0:00:16]} 84. h7 {[%clk 0:00:51]}  Rxh7 {[%clk 0:00:16]} 85. Rxh7+ {[%clk 0:00:52]}  Kxh7 {[%clk 0:00:17]} 1/2-1/2


[Site "https://www.chess.com"]

[Event "Titled Tuesday Blitz December 20 Late 2022"]
[White "ArchibaldCerveza29"]
[Black "Donchenko, Alexander"]
[BlackFideId "24603295"]
[WhiteElo "2446"]
[BlackElo "2581"]
[Result "0-1"]
[Round "01"]
[TimeControl "180+1"]
[Date "2022.12.21"]
[WhiteClock "0:00:18"]
[BlackClock "0:02:09"]

1. d4 {[%clk 0:02:56]}  Nf6 {[%clk 0:03:00]} 2. c4 {[%clk 0:02:55]}  e6 {[%clk 0:03:00]} 3. Nf3 {[%clk 0:02:47]}  d5 {[%clk 0:03:00]} 4. Nc3 {[%clk 0:02:43]}  Bb4 {[%clk 0:03:00]} 5. cxd5 {[%clk 0:02:42]}  exd5 {[%clk 0:03:00]} 6. a3 {[%clk 0:02:40]}  Bxc3+ {[%clk 0:02:58]} 7. bxc3 {[%clk 0:02:41]}  O-O {[%clk 0:02:58]} 8. Qc2 {[%clk 0:02:39]}  c5 {[%clk 0:02:58]} 9. e3 {[%clk 0:02:39]}  Ne4 {[%clk 0:02:56]} 10. Be2 {[%clk 0:02:32]}  Bf5 {[%clk 0:02:56]} 11. Qb2 {[%clk 0:02:32]}  Qb6 {[%clk 0:02:54]} 12. O-O {[%clk 0:02:29]}  Nc6 {[%clk 0:02:54]} 13. Rd1 {[%clk 0:02:21]}  Rfd8 {[%clk 0:02:52]} 14. Nh4 {[%clk 0:01:58]}  Be6 {[%clk 0:02:50]} 15. f3 {[%clk 0:01:40]}  Nd6 {[%clk 0:02:45]} 16. g3 {[%clk 0:01:35]}  Na5 {[%clk 0:02:33]} 17. Ng2 {[%clk 0:01:30]}  Nac4 {[%clk 0:02:31]} 18. Qa2 {[%clk 0:01:27]}  cxd4 {[%clk 0:02:26]} 19. cxd4 {[%clk 0:01:23]}  Rac8 {[%clk 0:02:20]} 20. Nf4 {[%clk 0:01:07]}  Nf5 {[%clk 0:02:20]} 21. Kf2 {[%clk 0:01:04]}  Re8 {[%clk 0:02:15]} 22. Rb1 {[%clk 0:01:01]}  Qd6 {[%clk 0:02:15]} 23. g4 {[%clk 0:00:45]}  Nfxe3 {[%clk 0:02:12]} 24. Bxe3 {[%clk 0:00:43]}  Nxe3 {[%clk 0:02:12]} 25. Kxe3 {[%clk 0:00:17]}  Bxg4+ {[%clk 0:02:12]} 26. Kf2 {[%clk 0:00:18]}  Qxf4 {[%clk 0:02:12]} 27. Kg2 {[%clk 0:00:19]}  Bf5 {[%clk 0:02:10]} 28. Rxb7 {[%clk 0:00:19]}  Rc2 {[%clk 0:02:10]} 29. Qxd5 {[%clk 0:00:17]}  Rexe2+ {[%clk 0:02:09]} 30. Kf1 {[%clk 0:00:17]}  Rf2+ {[%clk 0:02:09]} 31. Ke1 {[%clk 0:00:18]}  Rce2# {[%clk 0:02:09]} 0-1


[Site "https://www.chess.com"]

[Event "Titled Tuesday Blitz December 20 Late 2022"]
[White "Baches Garcia, Guillermo"]
[Black "Grigoriants, Sergey"]
[WhiteFideId "2209764"]
[BlackFideId "4130804"]
[WhiteElo "2470"]
[BlackElo "2502"]
[Result "1/2-1/2"]
[Round "01"]
[TimeControl "180+1"]
[Date "2022.12.20"]
[WhiteClock "0:00:18"]
[BlackClock "0:00:10"]

1. e4 {[%clk 0:02:59]}  c5 {[%clk 0:02:58]} 2. Nf3 {[%clk 0:02:58]}  e6 {[%clk 0:02:58]} 3. c4 {[%clk 0:02:57]}  Nc6 {[%clk 0:02:57]} 4. Nc3 {[%clk 0:02:57]}  Nd4 {[%clk 0:02:57]} 5. d3 {[%clk 0:02:49]}  Ne7 {[%clk 0:02:56]} 6. g3 {[%clk 0:02:45]}  Nxf3+ {[%clk 0:02:54]} 7. Qxf3 {[%clk 0:02:44]}  Nc6 {[%clk 0:02:54]} 8. Bg2 {[%clk 0:02:43]}  g6 {[%clk 0:02:53]} 9. Be3 {[%clk 0:02:40]}  d6 {[%clk 0:02:49]} 10. h4 {[%clk 0:02:34]}  h5 {[%clk 0:02:49]} 11. Bg5 {[%clk 0:02:29]}  Be7 {[%clk 0:02:46]} 12. Bxe7 {[%clk 0:02:24]}  Qxe7 {[%clk 0:02:46]} 13. O-O-O {[%clk 0:02:19]}  Bd7 {[%clk 0:02:37]} 14. Ne2 {[%clk 0:02:06]}  Ne5 {[%clk 0:01:48]} 15. Qf4 {[%clk 0:01:53]}  Rb8 {[%clk 0:01:48]} 16. b3 {[%clk 0:01:47]}  b5 {[%clk 0:01:47]} 17. Qd2 {[%clk 0:01:42]}  O-O {[%clk 0:01:43]} 18. f4 {[%clk 0:01:25]}  Ng4 {[%clk 0:01:40]} 19. Rhf1 {[%clk 0:01:24]}  a5 {[%clk 0:01:37]} 20. Qxa5 {[%clk 0:01:17]}  Ne3 {[%clk 0:01:36]} 21. Bf3 {[%clk 0:01:12]}  b4 {[%clk 0:01:35]} 22. e5 {[%clk 0:00:59]}  d5 {[%clk 0:00:49]} 23. cxd5 {[%clk 0:00:49]}  exd5 {[%clk 0:00:47]} 24. Kb2 {[%clk 0:00:42]}  Bb5 {[%clk 0:00:36]} 25. d4 {[%clk 0:00:34]}  cxd4 {[%clk 0:00:29]} 26. Rh1 {[%clk 0:00:27]}  Bxe2 {[%clk 0:00:19]} 27. Bxe2 {[%clk 0:00:24]}  Nxd1+ {[%clk 0:00:19]} 28. Rxd1 {[%clk 0:00:24]}  Rfc8 {[%clk 0:00:17]} 29. Qxd5 {[%clk 0:00:23]}  Qc7 {[%clk 0:00:14]} 30. Bc4 {[%clk 0:00:22]}  Rd8 {[%clk 0:00:14]} 31. Qe4 {[%clk 0:00:23]}  Kg7 {[%clk 0:00:13]} 32. Rxd4 {[%clk 0:00:21]}  Rxd4 {[%clk 0:00:12]} 33. Qxd4 {[%clk 0:00:21]}  Qb6 {[%clk 0:00:13]} 34. Qd7 {[%clk 0:00:19]}  Qf2+ {[%clk 0:00:12]} 35. Kb1 {[%clk 0:00:19]}  Qe1+ {[%clk 0:00:11]} 36. Kb2 {[%clk 0:00:19]}  Qc3+ {[%clk 0:00:11]} 37. Kb1 {[%clk 0:00:19]}  Rf8 {[%clk 0:00:12]} 38. e6 {[%clk 0:00:18]}  Qe1+ {[%clk 0:00:11]} 39. Kb2 {[%clk 0:00:18]}  Qc3+ {[%clk 0:00:11]} 40. Kb1 {[%clk 0:00:18]}  Qe1+ {[%clk 0:00:11]} 41. Kb2 {[%clk 0:00:18]}  Qxg3 {[%clk 0:00:09]} 42. e7 {[%clk 0:00:16]}  Qc3+ {[%clk 0:00:09]} 43. Kb1 {[%clk 0:00:16]}  Qe1+ {[%clk 0:00:10]} 44. Kb2 {[%clk 0:00:17]}  Qc3+ {[%clk 0:00:09]} 45. Kb1 {[%clk 0:00:17]}  Qe1+ {[%clk 0:00:10]} 46. Kb2 {[%clk 0:00:18]}  Qc3+ {[%clk 0:00:10]} 1/2-1/2


[Site "https://www.chess.com"]

[Event "Titled Tuesday Blitz December 20 Late 2022"]
[White "Berezin, Viktor"]
[Black "Kravtsiv, Martyn"]
[WhiteFideId "14107872"]
[BlackFideId "14113147"]
[WhiteElo "2310"]
[BlackElo "2695"]
[Result "0-1"]
[Round "01"]
[TimeControl "180+1"]
[Date "2022.12.20"]
[WhiteClock "0:00:03"]
[BlackClock "0:00:09"]

1. d4 {[%clk 0:02:59]}  d5 {[%clk 0:02:59]} 2. c4 {[%clk 0:02:58]}  e6 {[%clk 0:03:00]} 3. Nf3 {[%clk 0:02:58]}  Nf6 {[%clk 0:02:59]} 4. g3 {[%clk 0:02:58]}  Bb4+ {[%clk 0:02:57]} 5. Nbd2 {[%clk 0:02:57]}  O-O {[%clk 0:02:55]} 6. Bg2 {[%clk 0:02:57]}  b6 {[%clk 0:02:56]} 7. O-O {[%clk 0:02:57]}  Bb7 {[%clk 0:02:55]} 8. Qc2 {[%clk 0:02:56]}  Qc8 {[%clk 0:02:50]} 9. a3 {[%clk 0:02:51]}  Be7 {[%clk 0:02:47]} 10. cxd5 {[%clk 0:02:49]}  exd5 {[%clk 0:02:46]} 11. Ne5 {[%clk 0:02:50]}  c5 {[%clk 0:02:45]} 12. dxc5 {[%clk 0:02:44]}  bxc5 {[%clk 0:02:46]} 13. Ndf3 {[%clk 0:02:44]}  Nc6 {[%clk 0:02:43]} 14. Nxc6 {[%clk 0:02:43]}  Qxc6 {[%clk 0:02:41]} 15. Bf4 {[%clk 0:02:42]}  Rfd8 {[%clk 0:02:37]} 16. Rac1 {[%clk 0:02:41]}  Qb6 {[%clk 0:02:30]} 17. Rfd1 {[%clk 0:02:39]}  a5 {[%clk 0:02:29]} 18. Be5 {[%clk 0:02:33]}  Nd7 {[%clk 0:02:19]} 19. Bf4 {[%clk 0:02:30]}  Nf8 {[%clk 0:02:19]} 20. h4 {[%clk 0:02:30]}  Ne6 {[%clk 0:02:18]} 21. Bd2 {[%clk 0:02:24]}  d4 {[%clk 0:02:11]} 22. h5 {[%clk 0:02:15]}  h6 {[%clk 0:02:11]} 23. Bh3 {[%clk 0:01:55]}  Bd5 {[%clk 0:02:08]} 24. Ne5 {[%clk 0:01:53]}  Bb3 {[%clk 0:02:03]} 25. Qf5 {[%clk 0:01:52]}  Ng5 {[%clk 0:02:00]} 26. Bxg5 {[%clk 0:01:40]}  Bxg5 {[%clk 0:01:59]} 27. f4 {[%clk 0:01:38]}  Be7 {[%clk 0:01:51]} 28. Bg2 {[%clk 0:01:31]}  Rac8 {[%clk 0:01:46]} 29. Nc4 {[%clk 0:01:24]}  Qa6 {[%clk 0:01:34]} 30. Bd5 {[%clk 0:01:16]}  Qf6 {[%clk 0:01:28]} 31. Qxf6 {[%clk 0:00:51]}  Bxf6 {[%clk 0:01:29]} 32. Rd3 {[%clk 0:00:51]}  Rb8 {[%clk 0:01:23]} 33. Bf3 {[%clk 0:00:41]}  a4 {[%clk 0:01:22]} 34. Kf2 {[%clk 0:00:28]}  Be7 {[%clk 0:01:21]} 35. e3 {[%clk 0:00:23]}  Bxc4 {[%clk 0:01:18]} 36. Rxc4 {[%clk 0:00:22]}  Rxb2+ {[%clk 0:01:19]} 37. Be2 {[%clk 0:00:20]}  Ra8 {[%clk 0:01:05]} 38. exd4 {[%clk 0:00:19]}  cxd4 {[%clk 0:01:06]} 39. Rdxd4 {[%clk 0:00:16]}  Re8 {[%clk 0:00:30]} 40. Kf3 {[%clk 0:00:14]}  Bf6 {[%clk 0:00:25]} 41. Re4 {[%clk 0:00:10]}  Rb3+ {[%clk 0:00:26]} 42. Kg4 {[%clk 0:00:09]}  Rxe4 {[%clk 0:00:25]} 43. Rxe4 {[%clk 0:00:10]}  Rxa3 {[%clk 0:00:26]} 44. Bb5 {[%clk 0:00:09]}  g6 {[%clk 0:00:23]} 45. hxg6 {[%clk 0:00:09]}  fxg6 {[%clk 0:00:23]} 46. Rxa4 {[%clk 0:00:09]}  Rc3 {[%clk 0:00:22]} 47. Ra8+ {[%clk 0:00:09]}  Kg7 {[%clk 0:00:22]} 48. Ra7+ {[%clk 0:00:10]}  Kf8 {[%clk 0:00:22]} 49. Ra8+ {[%clk 0:00:10]}  Ke7 {[%clk 0:00:22]} 50. Re8+ {[%clk 0:00:10]}  Kf7 {[%clk 0:00:22]} 51. Ra8 {[%clk 0:00:10]}  h5+ {[%clk 0:00:22]} 52. Kh3 {[%clk 0:00:10]}  h4 {[%clk 0:00:23]} 53. Ra7+ {[%clk 0:00:10]}  Kf8 {[%clk 0:00:23]} 54. Ra8+ {[%clk 0:00:10]}  Kg7 {[%clk 0:00:23]} 55. Ra7+ {[%clk 0:00:09]}  Kh6 {[%clk 0:00:24]} 56. Ra6 {[%clk 0:00:09]}  Rxg3+ {[%clk 0:00:23]} 57. Kh2 {[%clk 0:00:10]}  Kg7 {[%clk 0:00:21]} 58. Ra7+ {[%clk 0:00:10]}  Kf8 {[%clk 0:00:21]} 59. Bc4 {[%clk 0:00:09]}  Be7 {[%clk 0:00:18]} 60. Ra8+ {[%clk 0:00:09]}  Kg7 {[%clk 0:00:18]} 61. Ra7 {[%clk 0:00:09]}  Kf6 {[%clk 0:00:19]} 62. Ra6+ {[%clk 0:00:09]}  Kf5 {[%clk 0:00:17]} 63. Re6 {[%clk 0:00:08]}  Bd8 {[%clk 0:00:13]} 64. Rd6 {[%clk 0:00:07]}  Bc7 {[%clk 0:00:13]} 65. Be6+ {[%clk 0:00:04]}  Kf6 {[%clk 0:00:13]} 66. Rc6 {[%clk 0:00:04]}  Bxf4 {[%clk 0:00:12]} 67. Bd5+ {[%clk 0:00:04]}  Kg5 {[%clk 0:00:12]} 68. Be4 {[%clk 0:00:04]}  Re3+ {[%clk 0:00:12]} 69. Kg2 {[%clk 0:00:04]}  Rxe4 {[%clk 0:00:12]} 70. Rc5+ {[%clk 0:00:05]}  Re5 {[%clk 0:00:12]} 71. Rc4 {[%clk 0:00:05]}  Rf5 {[%clk 0:00:12]} 72. Kh3 {[%clk 0:00:05]}  Bg3 {[%clk 0:00:13]} 73. Rg4+ {[%clk 0:00:06]}  Kh6 {[%clk 0:00:12]} 74. Rb4 {[%clk 0:00:05]}  Kh5 {[%clk 0:00:12]} 75. Rg4 {[%clk 0:00:05]}  g5 {[%clk 0:00:11]} 76. Rb4 {[%clk 0:00:05]}  Rc5 {[%clk 0:00:11]} 77. Rb7 {[%clk 0:00:05]}  g4+ {[%clk 0:00:10]} 78. Kg2 {[%clk 0:00:05]}  Rc2+ {[%clk 0:00:11]} 79. Kg1 {[%clk 0:00:05]}  h3 {[%clk 0:00:10]} 80. Rh7+ {[%clk 0:00:05]}  Kg6 {[%clk 0:00:10]} 81. Rf7 {[%clk 0:00:03]}  Rc1+ {[%clk 0:00:10]} 82. Rf1 {[%clk 0:00:04]}  h2+ {[%clk 0:00:09]} 83. Kg2 {[%clk 0:00:03]}  Rxf1 {[%clk 0:00:09]} 84. Kxg3 {[%clk 0:00:02]}  h1=Q {[%clk 0:00:08]} 85. Kxg4 {[%clk 0:00:03]}  Qf3+ {[%clk 0:00:08]} 86. Kh4 {[%clk 0:00:03]}  Rh1# {[%clk 0:00:09]} 0-1


[Site "https://www.chess.com"]

[Event "Titled Tuesday Blitz December 20 Late 2022"]
[White "Bjelobrk, Igor"]
[Black "Haszon, David"]
[WhiteFideId "4300726"]
[BlackFideId "733610"]
[WhiteElo "2335"]
[BlackElo "2210"]
[Result "1-0"]
[Round "01"]
[TimeControl "180+1"]
[Date "2022.12.21"]
[WhiteClock "0:00:34"]
[BlackClock "0:00:35"]

1. Nf3 {[%clk 0:03:00]}  c5 {[%clk 0:02:57]} 2. g3 {[%clk 0:02:59]}  Nc6 {[%clk 0:02:54]} 3. c4 {[%clk 0:02:57]}  g6 {[%clk 0:02:55]} 4. Nc3 {[%clk 0:02:56]}  Bg7 {[%clk 0:02:55]} 5. Bg2 {[%clk 0:02:57]}  d6 {[%clk 0:02:55]} 6. O-O {[%clk 0:02:55]}  Nf6 {[%clk 0:02:54]} 7. d4 {[%clk 0:02:52]}  O-O {[%clk 0:02:40]} 8. dxc5 {[%clk 0:02:49]}  dxc5 {[%clk 0:02:40]} 9. Bf4 {[%clk 0:02:50]}  Be6 {[%clk 0:02:36]} 10. Ne5 {[%clk 0:02:26]}  Qc8 {[%clk 0:02:16]} 11. Nxc6 {[%clk 0:02:19]}  bxc6 {[%clk 0:02:16]} 12. b3 {[%clk 0:02:16]}  Nh5 {[%clk 0:02:14]} 13. Bd2 {[%clk 0:02:15]}  Rd8 {[%clk 0:02:13]} 14. Qc1 {[%clk 0:02:14]}  Bh3 {[%clk 0:02:09]} 15. Rb1 {[%clk 0:02:07]}  Nf6 {[%clk 0:02:05]} 16. Na4 {[%clk 0:02:00]}  Bxg2 {[%clk 0:02:04]} 17. Kxg2 {[%clk 0:02:00]}  Qf5 {[%clk 0:02:04]} 18. Be3 {[%clk 0:01:58]}  Nd7 {[%clk 0:01:55]} 19. Rd1 {[%clk 0:01:54]}  Be5 {[%clk 0:01:33]} 20. Qd2 {[%clk 0:01:44]}  Bd6 {[%clk 0:01:30]} 21. Qd3 {[%clk 0:01:42]}  Qe6 {[%clk 0:01:18]} 22. Qc2 {[%clk 0:01:38]}  f6 {[%clk 0:01:17]} 23. Rd2 {[%clk 0:01:37]}  Kf7 {[%clk 0:01:17]} 24. Rbd1 {[%clk 0:01:36]}  Rab8 {[%clk 0:01:13]} 25. Qc3 {[%clk 0:01:33]}  h5 {[%clk 0:01:13]} 26. h4 {[%clk 0:01:31]}  Qe4+ {[%clk 0:01:08]} 27. f3 {[%clk 0:01:26]}  Qe6 {[%clk 0:01:07]} 28. Bf2 {[%clk 0:01:25]}  Rb4 {[%clk 0:01:06]} 29. Qc2 {[%clk 0:01:14]}  Rg8 {[%clk 0:01:00]} 30. Rh1 {[%clk 0:00:54]}  Rg7 {[%clk 0:01:00]} 31. Rd3 {[%clk 0:00:50]}  Qf5 {[%clk 0:00:53]} 32. Qd2 {[%clk 0:00:47]}  Rg8 {[%clk 0:00:46]} 33. Rxd6 {[%clk 0:00:37]}  exd6 {[%clk 0:00:45]} 34. Qxd6 {[%clk 0:00:38]}  Qe6 {[%clk 0:00:45]} 35. Qc7 {[%clk 0:00:38]}  Rxa4 {[%clk 0:00:41]} 36. bxa4 {[%clk 0:00:37]}  Re8 {[%clk 0:00:42]} 37. Rd1 {[%clk 0:00:37]}  Re7 {[%clk 0:00:41]} 38. Rd6 {[%clk 0:00:35]}  Qf5 {[%clk 0:00:36]} 39. e4 {[%clk 0:00:34]}  Rxe4 {[%clk 0:00:35]} 40. Rxd7+ {[%clk 0:00:34]} 1-0


[Site "https://www.chess.com"]

[Event "Titled Tuesday Blitz December 20 Late 2022"]
[White "Bobadilla Viera, Jorge Samuel"]
[Black "Arnold, Ken"]
[WhiteFideId "3906353"]
[BlackFideId "2056836"]
[WhiteElo "2182"]
[BlackElo "2333"]
[Result "0-1"]
[Round "01"]
[TimeControl "180+1"]
[Date "2022.12.21"]
[WhiteClock "0:01:21"]
[BlackClock "0:01:46"]

1. e4 {[%clk 0:02:39]}  c5 {[%clk 0:02:57]} 2. Nf3 {[%clk 0:02:39]}  d6 {[%clk 0:02:56]} 3. Nc3 {[%clk 0:02:40]}  Nf6 {[%clk 0:02:53]} 4. e5 {[%clk 0:02:39]}  dxe5 {[%clk 0:02:53]} 5. Nxe5 {[%clk 0:02:40]}  Nbd7 {[%clk 0:02:49]} 6. Nc4 {[%clk 0:02:35]}  e6 {[%clk 0:02:47]} 7. d3 {[%clk 0:02:34]}  Be7 {[%clk 0:02:46]} 8. g3 {[%clk 0:02:34]}  Nb6 {[%clk 0:02:43]} 9. b3 {[%clk 0:02:33]}  Nbd5 {[%clk 0:02:41]} 10. Bb2 {[%clk 0:02:17]}  Nxc3 {[%clk 0:02:40]} 11. Bxc3 {[%clk 0:02:17]}  b5 {[%clk 0:02:40]} 12. Bg2 {[%clk 0:02:17]}  Nd5 {[%clk 0:02:37]} 13. Ba5 {[%clk 0:02:09]}  Qd7 {[%clk 0:02:19]} 14. Ne5 {[%clk 0:01:49]}  Qd6 {[%clk 0:02:17]} 15. Qe2 {[%clk 0:01:49]}  Bf6 {[%clk 0:02:14]} 16. f4 {[%clk 0:01:49]}  Bb7 {[%clk 0:02:10]} 17. c4 {[%clk 0:01:37]}  Qa6 {[%clk 0:02:05]} 18. Bd2 {[%clk 0:01:26]}  Nb4 {[%clk 0:01:54]} 19. Bxb7 {[%clk 0:01:23]}  Qxb7 {[%clk 0:01:53]} 20. Bxb4 {[%clk 0:01:21]}  Qxh1+ {[%clk 0:01:48]} 21. Kd2 {[%clk 0:01:21]}  Qxa1 {[%clk 0:01:46]} 0-1


[Site "https://www.chess.com"]